fUSD/lending_fUSD_20250510
["ID","MTS","AMOUNT","RATE_DAILY","PERIOD"]
[360663001,1746919854989,-400.0,0.00019985,2]
[360663003,1746919854999,-400.0,0.00019985,2]
[360663005,1746919855009,-400.0,0.00019985,2]
[360663007,1746919855020,-400.0,0.00019985,2]
[360663009,1746919855030,-400.0,0.00019985,2]
[360663011,1746919855040,-400.0,0.00019985,2]
[360663013,1746919855052,-400.0,0.00019985,2]
[360663015,1746919855063,-400.0,0.00019985,2]
[360663017,1746919855072,-282.19220341,0.00019985,2]
[360663019,1746919855083,-400.0,0.00019985,2]
[360663022,1746919855097,-400.0,0.00019985,2]
[360663024,1746919855107,-400.0,0.00019985,2]
[360663026,1746919855117,-400.0,0.00019985,2]
[360663028,1746919855128,-1353.38,0.00019985,2]
[360663030,1746919855138,-1353.38,0.00019985,2]
[360663032,1746919855147,-1836.81,0.00019985,2]
[360663034,1746919855157,-1836.81,0.00019985,2]
[360663036,1746919855168,-1836.81,0.00019985,2]
[360663038,1746919855178,-1836.81,0.00019985,2]
[360663040,1746919855188,-1836.81,0.00019985,2]
[360663042,1746919855198,-1836.81,0.00019985,2]
[360663044,1746919855208,-1836.81,0.00019985,2]
[360663046,1746919855217,-1836.81,0.00019985,2]
[360663048,1746919855227,-1836.81,0.00019985,2]
[360663050,1746919855237,-1836.81,0.00019985,2]
[360663052,1746919855247,-1190.3,0.00019985,2]
[360663054,1746919855257,-1190.3,0.00019985,2]
[360663056,1746919855267,-400.0,0.00019985,2]
[360663058,1746919855277,-400.0,0.00019985,2]
[360663060,1746919855287,-256.19514273,0.00019985,2]
[360663062,1746919855298,-400.0,0.00019985,2]
[360663064,1746919855308,-400.0,0.00019985,2]
[360663067,1746919855318,-948.74,0.00019985,2]
[360663069,1746919855328,-948.74,0.00019985,2]
[360663071,1746919855340,-948.74,0.00019985,2]
[360663073,1746919855351,-948.74,0.00019985,2]
[360663075,1746919855363,-948.74,0.00019985,2]
[360663077,1746919855374,-948.74,0.00019985,2]
[360663079,1746919855388,-948.74,0.00019985,2]
[360663082,1746919855398,-2081.87,0.00019985,2]
[360663084,1746919855408,-948.74,0.00019985,2]
[360663086,1746919855418,-2081.87,0.00019985,2]
[360663088,1746919855428,-948.74,0.00019985,2]
[360663090,1746919855439,-948.74,0.00019985,2]
[360663092,1746919855448,-151.0,0.00019985,2]
[360663094,1746919855459,-965.5,0.00019985,2]
[360663118,1746919855676,-965.5,0.00019985,2]
[360663120,1746919855686,-965.5,0.00019985,2]
[360663122,1746919855696,-965.5,0.00019985,2]
[360663124,1746919855706,-965.5,0.00019985,2]
[360663126,1746919855716,-965.5,0.00019985,2]
[360663128,1746919855726,-965.5,0.00019985,2]
[360663130,1746919855736,-965.5,0.00019985,2]
[360663132,1746919855746,-965.5,0.00019985,2]
[360663134,1746919855756,-965.5,0.00019985,2]
[360663136,1746919855765,-747.48,0.00019985,2]
[360663138,1746919855775,-747.48,0.00019985,2]
[360663140,1746919855784,-747.48,0.00019985,2]
[360663142,1746919855794,-747.48,0.00019985,2]
[360663144,1746919855804,-747.48,0.00019985,2]
[360663146,1746919855814,-747.48,0.00019985,2]
[360663148,1746919855823,-747.48,0.00019985,2]
[360663150,1746919855833,-747.48,0.00019985,2]
[360663152,1746919855846,-747.48,0.00019985,2]
[360663154,1746919855855,-747.48,0.00019985,2]
[360663156,1746919855866,-254.761656,0.00019985,2]
[360663159,1746919855876,-635.74,0.00019985,2]
[360663161,1746919855886,-635.74,0.00019985,2]
[360663163,1746919855896,-254.761656,0.00019985,2]
[360663165,1746919855906,-151.0,0.00019985,2]
[360663167,1746919855917,-913.53,0.00019985,2]
[360663169,1746919855926,-913.53,0.00019985,2]
[360663171,1746919855936,-913.53,0.00019985,2]
[360663173,1746919855946,-913.53,0.00019985,2]
[360663175,1746919855955,-913.53,0.00019985,2]
[360663177,1746919855966,-913.53,0.00019985,2]
[360663179,1746919855976,-913.53,0.00019985,2]
[360663181,1746919855986,-913.53,0.00019985,2]
[360663183,1746919855996,-913.53,0.00019985,2]
[360663185,1746919856007,-913.53,0.00019985,2]
[360663187,1746919856017,-602.17,0.00019985,2]
[360663189,1746919856027,-602.17,0.00019985,2]
[360663191,1746919856037,-602.17,0.00019985,2]
[360663194,1746919856047,-602.17,0.00019985,2]
[360663196,1746919856057,-602.17,0.00019985,2]
[360663198,1746919856068,-602.17,0.00019985,2]
[360663200,1746919856078,-602.17,0.00019985,2]
[360663202,1746919856089,-602.17,0.00019985,2]
[360663204,1746919856099,-602.17,0.00019985,2]
[360663206,1746919856109,-602.17,0.00019985,2]
[360663208,1746919856119,-957.79,0.00019985,2]
[360663210,1746919856129,-957.79,0.00019985,2]
[360663212,1746919856139,-957.79,0.00019985,2]
[360663213,1746919856148,-957.79,0.00019985,2]
[360663214,1746919856158,-957.79,0.00019985,2]
[360663215,1746919856168,-957.79,0.00019985,2]
[360663216,1746919856178,-957.79,0.00019985,2]
[360663217,1746919856187,-957.79,0.00019985,2]
[360663218,1746919856197,-957.79,0.00019985,2]
[360663219,1746919856207,-957.79,0.00019985,2]
[360663220,1746919856216,-400.0,0.00019985,2]
[360663221,1746919856226,-400.0,0.00019985,2]
[360663222,1746919856235,-400.0,0.00019985,2]
[360663223,1746919856245,-400.0,0.00019985,2]
[360663224,1746919856255,-400.0,0.00019985,2]
[360663225,1746919856265,-400.0,0.00019985,2]
[360663226,1746919856275,-400.0,0.00019985,2]
[360663227,1746919856284,-400.0,0.00019985,2]
[360663229,1746919856294,-507.04,0.00019985,2]
[360663231,1746919856304,-400.0,0.00019985,2]
[360663233,1746919856314,-331.77,0.00019985,2]
[360663235,1746919856325,-400.0,0.00019985,2]
[360663237,1746919856336,-400.0,0.00019985,2]
[360663239,1746919856346,-400.0,0.00019985,2]
[360663241,1746919856356,-400.0,0.00019985,2]
[360663243,1746919856366,-400.0,0.00019985,2]
[360663245,1746919856375,-400.0,0.00019985,2]
[360663247,1746919856385,-400.0,0.00019985,2]
[360663249,1746919856395,-400.0,0.00019985,2]
[360663251,1746919856405,-400.0,0.00019985,2]
[360663253,1746919856415,-400.0,0.00019985,2]
[360663255,1746919856426,-31677.38,0.00019985,2]
[360663257,1746919856435,-31677.38,0.00019985,2]
[360663259,1746919856445,-31677.38,0.00019985,2]
[360663261,1746919856455,-31677.38,0.00019985,2]
[360663263,1746919856465,-31677.38,0.00019985,2]
[360663265,1746919856475,-31677.38,0.00019985,2]
[360663267,1746919856485,-31677.38,0.00019985,2]
[360663269,1746919856496,-31677.38,0.00019985,2]
[360663271,1746919856507,-31677.38,0.00019985,2]
[360663273,1746919856518,-31677.38,0.00019985,2]
[360663276,1746919856528,-400.0,0.00019985,2]
[360663277,1746919856538,-549.0,0.00019985,2]
[360663279,1746919856548,-418.35,0.00019985,2]
[360663282,1746919856558,-418.35,0.00019985,2]
[360663284,1746919856572,-500.0,0.00019985,2]
[360663286,1746919856582,-500.0,0.00019985,2]
[360663288,1746919856596,-500.0,0.00019985,2]
[360663289,1746919856606,-500.0,0.00019985,2]
[360663292,1746919856617,-378612.46384775,0.00019986,2]
[360663295,1746919856639,-2067.11999999,0.00019986,2]
[360663297,1746919856651,-5679.38954148,0.00019986,2]
[360663299,1746919856664,-261356.55336779,0.00019986,2]
[360663312,1746919856780,-58.40900053,0.00019986,2]
[360663318,1746919856825,-400.0,0.00019745,2]
[360663320,1746919856839,-400.0,0.00019868,2]
[360663322,1746919856850,-3105.91470261,0.00019986,2]
[360663324,1746919856863,-3052.95915221,0.00019986,2]
[360663326,1746919856876,-9764.6711351,0.00019986,2]
[360663334,1746919856939,-250.42824818,0.00019888,2]
[360663336,1746919856951,-149.57175182,0.00019888,2]
[360663338,1746919856962,-112.0132481,0.00019891,2]
[360663340,1746919856974,-287.9867519,0.00019891,2]
[360663342,1746919856984,-400.0,0.00019894,2]
[360663344,1746919856995,-400.0,0.00019903,2]
[360663346,1746919857005,-1035.50121157,0.00019984,5]
[360663348,1746919857015,-1035.50121157,0.00019985,5]
[360663350,1746919857025,-5037.91438796,0.00019986,2]
[360664516,1746920322158,2017.25,0.0003,120]
[360664517,1746920395119,294.02893159,0.00016297,2]
[360664518,1746920395146,485.55106841,0.00016297,2]
[360664531,1746920761688,382.71,0.00013699,2]
[360664532,1746920833104,-550.0,0.00017985,2]
[360664533,1746920833132,-532.1846805,0.00017985,2]
[360664534,1746920836114,-667.8153195,0.00017985,2]
[360664535,1746920836141,-300.0,0.00017985,2]
[360664536,1746920836166,-250.0,0.00017985,2]
[360664537,1746920836192,-219.31,0.00018038,2]
[360664538,1746920836217,-1179.17,0.00018062,2]
[360664539,1746920836241,-151.0,0.0001814,2]
[360664540,1746920836266,-151.0,0.00018153,2]
[360664541,1746920836291,-151.0,0.00018165,2]
[360664542,1746920836316,-151.0,0.00018232,2]
[360664543,1746920836344,-300.0,0.00018242,2]
[360664544,1746920836369,-3049.31589883,0.00018243,2]
[360664545,1746920848084,-151.0,0.00018192,2]
[360664546,1746920848107,-331.54403726,0.00018243,2]
[360664547,1746920849150,-723.72964538,0.00018243,2]
[360664548,1746920948274,-500.0,0.00017984,2]
[360664549,1746920948296,-233.88281458,0.00017984,2]
[360664550,1746920948329,-1059.55365804,0.00017984,2]
[360664551,1746920948362,-1059.55365804,0.00017984,2]
[360664552,1746920948394,-1059.55365804,0.00017984,2]
[360664553,1746920948429,-1059.55365804,0.00017984,2]
[360664554,1746920948460,-31.34769043,0.00017984,2]
[360664556,1746920984483,155.58,0.00027081,120]
[360664566,1746921009980,220.51953344,0.0003,120]
[360664588,1746921033306,-362.08,0.00017982,2]
[360664598,1746921038311,-500.0,0.00017981,2]
[360664599,1746921038325,-618.10005174,0.00017981,2]
[360664600,1746921038336,-264.06157427,0.00017981,2]
[360664601,1746921038347,-618.10005174,0.00017981,2]
[360664602,1746921038358,-618.10005174,0.00017981,2]
[360664603,1746921038369,-618.10005174,0.00017981,2]
[360664604,1746921038384,-618.10005174,0.00017981,2]
[360664605,1746921038395,-618.10005174,0.00017981,2]
[360664606,1746921038406,-618.10005174,0.00017981,2]
[360664607,1746921038417,-618.10005174,0.00017981,2]
[360664608,1746921038427,-459.63802181,0.00017981,2]
[360664610,1746921038441,-158.46202993,0.00017981,2]
[360664612,1746921038452,-201.97643228,0.00017981,2]
[360664615,1746921038466,-416.12361946,0.00017981,2]
[360664617,1746921038477,-590.56506414,0.00017981,2]
[360664619,1746921038491,-27.5349876,0.00017981,2]
[360664621,1746921038501,-618.10005174,0.00017981,2]
[360664623,1746921038512,-618.10005174,0.00017981,2]
[360664626,1746921038523,-618.10005174,0.00017981,2]
[360664628,1746921038534,-618.10005174,0.00017981,2]
[360664630,1746921038545,-618.10005174,0.00017981,2]
[360664632,1746921038556,-618.10005174,0.00017981,2]
[360664634,1746921038568,-618.10005174,0.00017981,2]
[360664636,1746921038579,-618.10005174,0.00017981,2]
[360664638,1746921038590,-618.10005174,0.00017981,2]
[360664639,1746921038601,-618.10005174,0.00017981,2]
[360664640,1746921038611,-618.10005174,0.00017981,2]
[360664641,1746921038622,-618.10005174,0.00017981,2]
[360664642,1746921038632,-618.10005174,0.00017981,2]
[360664643,1746921038643,-618.10005174,0.00017981,2]
[360664645,1746921038654,-618.10005174,0.00017981,2]
[360664646,1746921038665,-618.10005174,0.00017981,2]
[360664647,1746921038676,-618.10005174,0.00017981,2]
[360664648,1746921038687,-618.10005174,0.00017981,2]
[360664649,1746921038699,-618.10005174,0.00017981,2]
[360664650,1746921038711,-618.10005174,0.00017981,2]
[360664651,1746921038722,-618.10005174,0.00017981,2]
[360664652,1746921038734,-618.10005174,0.00017981,2]
[360664653,1746921038746,-618.10005174,0.00017981,2]
[360664654,1746921038756,-618.10005174,0.00017981,2]
[360664655,1746921038767,-837.92,0.00017982,2]
[360664656,1746921038778,-300.0,0.00017982,2]
[360664657,1746921038788,-175.59705085,0.00017982,2]
[360664658,1746921038799,-177.90964065,0.00017982,2]
[360664659,1746921038810,-195.94275485,0.00017982,2]
[360664660,1746921038822,-1000.0,0.00018054,2]
[360664661,1746921038832,-155.58,0.00018054,2]
[360664662,1746921038844,-151.0,0.0001816,2]
[360664663,1746921038855,-151.0,0.00018179,2]
[360664664,1746921038867,-151.0,0.00018207,2]
[360664665,1746921038878,-2903.43041853,0.00018243,2]
[360664666,1746921038888,-240.56,0.00018263,2]
[360664667,1746921038899,-172.03,0.00018282,2]
[360664668,1746921038910,-151.0,0.00018481,2]
[360664669,1746921038920,-155.0,0.00018481,2]
[360664670,1746921038933,-151.0,0.00018481,2]
[360664671,1746921038944,-207.4,0.00018481,2]
[360664672,1746921038954,-151.0,0.00018481,2]
[360664673,1746921038965,-668.65185757,0.00018481,2]
[360664674,1746921038978,-779.58,0.00018561,2]
[360664675,1746921038989,-164.69,0.00018803,2]
[360664676,1746921038999,-1672.49,0.00018858,2]
[360664677,1746921039011,-200.0,0.00018861,2]
[360664678,1746921039023,-1672.49,0.00018863,2]
[360664679,1746921039035,-1672.49,0.00018868,2]
[360664680,1746921039045,-200.0,0.00018868,2]
[360664681,1746921039056,-1672.49,0.00018873,2]
[360664682,1746921039067,-1672.49,0.00018878,2]
[360664683,1746921039078,-1672.49,0.00018883,2]
[360664684,1746921039089,-1672.49,0.00018888,2]
[360664685,1746921039100,-1672.49,0.00018893,2]
[360664686,1746921039111,-1672.49,0.00018898,2]
[360664687,1746921039122,-700.0,0.000189,6]
[360664688,1746921039134,-1672.49,0.00018903,2]
[360664689,1746921039144,-1672.49,0.00018908,2]
[360664690,1746921039155,-1672.49,0.00018913,2]
[360664691,1746921039166,-1672.49,0.00018918,2]
[360664692,1746921039178,-632.77239703,0.0001892,2]
[360664693,1746921039189,-1672.49,0.00018923,2]
[360664694,1746921039199,-237.0,0.00018923,2]
[360664695,1746921039211,-1000.0,0.00018927,2]
[360664696,1746921039222,-1672.49,0.00018928,2]
[360664697,1746921039232,-1672.49,0.00018933,2]
[360664698,1746921039254,-1672.49,0.00018938,2]
[360664699,1746921039265,-1672.49,0.00018943,2]
[360664700,1746921039276,-1672.49,0.00018948,2]
[360664701,1746921039288,-1672.49,0.00018953,2]
[360664702,1746921039299,-3201.59687457,0.00018978,2]
[360664705,1746921040346,-940.0,0.00018978,2]
[360664706,1746921040397,-1760.93954894,0.00018978,2]
[360664707,1746921040451,-15409.44267649,0.00018978,2]
[360664708,1746921040462,-150.0,0.00018986,7]
[360664709,1746921040473,-1500.0,0.00019,6]
[360664710,1746921040484,-151.0,0.00019029,2]
[360664711,1746921040496,-668.65185757,0.00019029,2]
[360664712,1746921040507,-803.31,0.00019041,2]
[360664713,1746921040518,-457.06,0.00019041,2]
[360664714,1746921040528,-457.06,0.00019041,2]
[360664715,1746921040539,-803.31,0.00019041,2]
[360664716,1746921040550,-803.31,0.00019041,2]
[360664717,1746921040561,-457.06,0.00019041,2]
[360664718,1746921040574,-457.06,0.00019041,2]
[360664719,1746921040584,-803.31,0.00019041,2]
[360664720,1746921040594,-803.31,0.00019041,2]
[360664721,1746921040603,-457.06,0.00019041,2]
[360664722,1746921040902,-497.54,0.00019041,2]
[360664723,1746921040919,-1119.69,0.00019041,2]
[360664724,1746921040928,-2300.0,0.000191,6]
[360664725,1746921040941,-429.10367395,0.00019178,2]
[360664726,1746921040951,-390.98671278,0.00019178,2]
[360664727,1746921040961,-500.0,0.00019178,2]
[360664728,1746921040970,-500.0,0.00019178,2]
[360664729,1746921040980,-500.0,0.00019178,2]
[360664730,1746921040989,-500.0,0.00019178,2]
[360664731,1746921040998,-500.0,0.00019178,2]
[360664732,1746921041008,-500.0,0.00019178,2]
[360664733,1746921041018,-500.0,0.00019178,2]
[360664734,1746921041027,-500.0,0.00019178,2]
[360664735,1746921041036,-500.0,0.00019178,2]
[360664736,1746921041045,-500.0,0.00019178,2]
[360664737,1746921041055,-500.0,0.00019178,2]
[360664738,1746921041064,-151.0,0.00019178,2]
[360664739,1746921041075,-150.0,0.00019178,2]
[360664740,1746921041085,-162.5,0.00019178,2]
[360664741,1746921041095,-150.06,0.00019178,2]
[360664742,1746921041104,-352.66,0.00019178,2]
[360664743,1746921041113,-452.36,0.00019178,2]
[360664744,1746921041124,-300.0,0.00019178,2]
[360664745,1746921041133,-300.0,0.00019178,2]
[360664746,1746921041143,-452.36,0.00019178,2]
[360664747,1746921041152,-162.5,0.00019178,2]
[360664748,1746921041162,-150.06,0.00019178,2]
[360664749,1746921041171,-352.66,0.00019178,2]
[360664750,1746921041182,-162.5,0.00019178,2]
[360664751,1746921041191,-352.66,0.00019178,2]
[360664752,1746921041201,-150.06,0.00019178,2]
[360664753,1746921041210,-452.36,0.00019178,2]
[360664754,1746921041219,-452.36,0.00019178,2]
[360664755,1746921041229,-352.66,0.00019178,2]
[360664756,1746921041239,-150.06,0.00019178,2]
[360664757,1746921041248,-162.5,0.00019178,2]
[360664758,1746921041257,-150.06,0.00019178,2]
[360664759,1746921041267,-452.36,0.00019178,2]
[360664760,1746921041275,-352.66,0.00019178,2]
[360664761,1746921041285,-162.5,0.00019178,2]
[360664762,1746921041295,-150.06,0.00019178,2]
[360664763,1746921041305,-352.66,0.00019178,2]
[360664764,1746921041314,-320.97,0.00019178,2]
[360664765,1746921041324,-310.99,0.00019178,2]
[360664766,1746921041334,-344.11,0.00019178,2]
[360664767,1746921041343,-150.06,0.00019178,2]
[360664768,1746921041352,-150.06,0.00019178,2]
[360664769,1746921041362,-150.06,0.00019178,2]
[360664770,1746921041371,-3100.0,0.000192,7]
[360664771,1746921041380,-500.0,0.00019288,2]
[360664772,1746921041390,-3900.0,0.000193,7]
[360664773,1746921041400,-632.77239703,0.00019342,2]
[360664774,1746921041410,-700.0,0.000194,7]
[360664775,1746921041419,-1000.0,0.00019434,2]
[360664776,1746921041428,-9473.67416598,0.00019434,2]
[360664777,1746921041438,-150.0,0.00019452,2]
[360664778,1746921041447,-9473.67416594,0.00019486,2]
[360664779,1746921041456,-700.0,0.000195,7]
[360664780,1746921041466,-684.56,0.00019524,2]
[360664781,1746921041475,-400.0,0.00019533,2]
[360664782,1746921041484,-504.45360666,0.00019533,2]
[360664783,1746921041493,-400.0,0.00019533,2]
[360664784,1746921041502,-502.66499924,0.00019533,2]
[360664785,1746921041511,-509.09658402,0.00019533,2]
[360664786,1746921041520,-503.02765882,0.00019533,2]
[360664787,1746921041529,-403.19259088,0.00019533,2]
[360664788,1746921041538,-403.18618766,0.00019533,2]
[360664789,1746921041547,-507.39669017,0.00019533,2]
[360664790,1746921041557,-504.11684838,0.00019533,2]
[360664791,1746921041566,-400.0,0.00019533,2]
[360664792,1746921041575,-400.81814413,0.00019533,2]
[360664793,1746921041586,-400.0,0.00019533,2]
[360664794,1746921041595,-400.0,0.00019533,2]
[360664795,1746921041605,-539.12254755,0.00019533,2]
[360664796,1746921041614,-544.07039922,0.00019533,2]
[360664797,1746921041622,-400.0,0.00019533,2]
[360664798,1746921041632,-400.0,0.00019533,2]
[360664799,1746921041641,-400.0,0.00019533,2]
[360664800,1746921041650,-400.0,0.00019533,2]
[360664801,1746921041659,-400.0,0.00019533,2]
[360664802,1746921041668,-524.96779288,0.00019533,2]
[360664803,1746921041677,-400.0,0.00019533,2]
[360664804,1746921041686,-500.0,0.00019533,2]
[360664805,1746921041696,-540.45490497,0.00019534,2]
[360664806,1746921041705,-519.05196203,0.00019534,2]
[360664807,1746921041714,-484.11755892,0.00019534,2]
[360664808,1746921041723,-501.56954133,0.00019534,2]
[360664809,1746921041732,-400.0,0.00019534,2]
[360664810,1746921041741,-451.22830515,0.00019534,2]
[360664811,1746921041751,-400.0,0.00019534,2]
[360664812,1746921041760,-400.0,0.00019534,2]
[360664813,1746921041769,-400.0,0.00019534,2]
[360664814,1746921041778,-400.0,0.00019534,2]
[360664815,1746921041787,-400.0,0.00019534,2]
[360664816,1746921041798,-400.0,0.00019534,2]
[360664817,1746921041810,-402.70138768,0.00019534,2]
[360664818,1746921041819,-400.0,0.00019534,2]
[360664819,1746921041828,-400.0,0.00019534,2]
[360664820,1746921041837,-400.0,0.00019534,2]
[360664821,1746921041846,-405.71833171,0.00019534,2]
[360664822,1746921041855,-545.15963195,0.00019534,2]
[360664823,1746921041864,-400.0,0.00019534,2]
[360664824,1746921041874,-400.0,0.00019534,2]
[360664825,1746921041883,-400.0,0.00019534,2]
[360664826,1746921041893,-400.0,0.00019534,2]
[360664827,1746921041902,-503.56437261,0.00019534,2]
[360664828,1746921041911,-400.0,0.00019534,2]
[360664829,1746921041920,-451.10767954,0.00019534,2]
[360664830,1746921041929,-420.89,0.00019534,2]
[360664831,1746921041943,-400.0,0.00019534,2]
[360664832,1746921041952,-400.0,0.00019534,2]
[360664833,1746921041962,-400.0,0.00019534,2]
[360664834,1746921041971,-400.0,0.00019534,2]
[360664835,1746921041980,-400.0,0.00019534,2]
[360664836,1746921041990,-461.79051116,0.00019534,2]
[360664837,1746921041999,-400.0,0.00019534,2]
[360664838,1746921042009,-400.0,0.00019534,2]
[360664839,1746921042019,-400.0,0.00019534,2]
[360664840,1746921042028,-400.0,0.00019534,2]
[360664841,1746921042038,-467.79,0.00019534,2]
[360664842,1746921042047,-400.0,0.00019534,2]
[360664843,1746921042057,-400.0,0.00019534,2]
[360664844,1746921042068,-400.0,0.00019534,2]
[360664845,1746921042077,-400.0,0.00019534,2]
[360664846,1746921042087,-400.0,0.00019534,2]
[360664847,1746921042096,-400.0,0.00019534,2]
[360664848,1746921042107,-339.15925173,0.00019534,2]
[360664849,1746921042116,-400.0,0.00019534,2]
[360664850,1746921042126,-400.0,0.00019534,2]
[360664851,1746921042135,-152.70131153,0.00019534,2]
[360664852,1746921042146,-400.0,0.00019534,2]
[360664853,1746921042155,-400.0,0.00019534,2]
[360664854,1746921042165,-400.0,0.00019534,2]
[360664855,1746921042174,-400.0,0.00019534,2]
[360664856,1746921042183,-400.0,0.00019534,2]
[360664857,1746921042192,-400.0,0.00019534,2]
[360664858,1746921042201,-400.0,0.00019534,2]
[360664859,1746921042210,-400.0,0.00019534,2]
[360664860,1746921042220,-400.0,0.00019534,2]
[360664861,1746921042229,-400.0,0.00019534,2]
[360664862,1746921042240,-400.0,0.00019534,2]
[360664863,1746921042251,-400.0,0.00019534,2]
[360664864,1746921042260,-180.2295009,0.00019534,2]
[360664865,1746921042271,-250.0,0.00019534,2]
[360664866,1746921042280,-400.0,0.00019534,2]
[360664867,1746921042290,-400.0,0.00019534,2]
[360664868,1746921042300,-314.24256,0.00019534,2]
[360664869,1746921042310,-400.0,0.00019534,2]
[360664870,1746921042319,-450.28,0.00019534,2]
[360664871,1746921042328,-400.0,0.00019534,2]
[360664872,1746921042338,-400.0,0.00019534,2]
[360664873,1746921042348,-400.0,0.00019534,2]
[360664874,1746921042357,-400.0,0.00019534,2]
[360664875,1746921042367,-400.0,0.00019534,2]
[360664876,1746921042376,-230.55949739,0.00019534,2]
[360664877,1746921042385,-400.0,0.00019534,2]
[360664878,1746921042395,-400.0,0.00019534,2]
[360664879,1746921042405,-400.0,0.00019534,2]
[360664880,1746921042415,-713.25,0.00019534,2]
[360664881,1746921042424,-400.0,0.00019534,2]
[360664882,1746921042433,-400.0,0.00019534,2]
[360664883,1746921042443,-965.83,0.00019534,2]
[360664884,1746921042452,-400.0,0.00019534,2]
[360664885,1746921042461,-400.0,0.00019534,2]
[360664886,1746921042471,-668.86,0.00019534,2]
[360664887,1746921042480,-400.0,0.00019534,2]
[360664888,1746921042489,-495.32389706,0.00019534,2]
[360664889,1746921042499,-400.0,0.00019534,2]
[360664890,1746921042509,-400.0,0.00019534,2]
[360664891,1746921042518,-400.0,0.00019534,2]
[360664892,1746921042528,-400.0,0.00019534,2]
[360664893,1746921042537,-400.0,0.00019534,2]
[360664894,1746921042547,-400.0,0.00019534,2]
[360664895,1746921042556,-400.0,0.00019534,2]
[360664896,1746921042566,-400.0,0.00019534,2]
[360664897,1746921042577,-400.0,0.00019534,2]
[360664898,1746921042587,-400.0,0.00019534,2]
[360664899,1746921042596,-400.0,0.00019534,2]
[360664900,1746921042606,-400.0,0.00019534,2]
[360664901,1746921042615,-400.0,0.00019534,2]
[360664902,1746921042625,-400.0,0.00019534,2]
[360664903,1746921042634,-400.0,0.00019534,2]
[360664904,1746921042644,-536.43204037,0.00019534,2]
[360664905,1746921042653,-400.0,0.00019534,2]
[360664906,1746921042663,-209.1021564,0.00019534,2]
[360664907,1746921042672,-400.0,0.00019534,2]
[360664908,1746921042681,-400.0,0.00019534,2]
[360664909,1746921042691,-521.46,0.00019534,2]
[360664910,1746921042700,-939.42,0.00019534,2]
[360664911,1746921042709,-400.0,0.00019534,2]
[360664912,1746921042719,-403.68716271,0.00019534,2]
[360664913,1746921042728,-400.0,0.00019534,2]
[360664914,1746921042738,-500.0,0.00019534,2]
[360664915,1746921042747,-400.0,0.00019534,2]
[360664916,1746921042757,-477.71,0.00019534,2]
[360664917,1746921042766,-400.0,0.00019534,2]
[360664918,1746921042775,-400.0,0.00019534,2]
[360664919,1746921042785,-400.0,0.00019534,2]
[360664920,1746921042794,-400.0,0.00019534,2]
[360664921,1746921042803,-1454.44,0.00019534,2]
[360664922,1746921042813,-400.0,0.00019534,2]
[360664923,1746921042823,-400.0,0.00019534,2]
[360664924,1746921042832,-427.86066205,0.00019534,2]
[360664925,1746921042842,-9473.67416594,0.00019537,2]
[360664926,1746921042851,-158.98189596,0.00019538,2]
[360664927,1746921042860,-9473.67416594,0.00019589,2]
[360664928,1746921042869,-300.0,0.00019593,2]